bitfinex/quotes_SOLUSD_20250718
["timestamp","ask_amount","ask_price","bid_price","bid_amount"]
[1752806088788,26.0,179.82,179.81,6.62799395]
[1752806089202,6.33022549,179.85,179.81,6.62799395]
[1752806089402,6.33022549,179.85,179.82,28.92]
[1752806089903,6.33022549,179.85,179.82,35.54799395]
[1752806090288,32.33022549,179.85,179.82,35.54799395]
[1752806093802,32.33022549,179.85,179.82,28.92]
[1752806093979,31.62022549,179.85,179.82,28.92]
[1752806094179,0.71,179.84,179.82,28.92]
[1752806095302,6.27051447,179.84,179.82,35.54799395]
[1752806095490,0.71,179.84,179.82,35.54799395]
[1752806095694,6.27053998,179.84,179.82,35.54799395]
[1752806096883,6.27053998,179.84,179.82,28.92]
[1752806097194,26.06,179.85,179.82,28.92]
[1752806097195,31.62021785,179.85,179.82,124.10799395]
[1752806097503,26.06,179.85,179.82,124.62799395]
[1752806097707,26.06,179.85,179.83,7.14799395]
[1752806097890,26.06,179.85,179.84,28.9]
[1752806101006,38.94818299,179.85,179.83,88.56]
[1752806101209,7.32799395,179.84,179.77,111.97267792]
[1752806101392,45.52066165,179.85,179.76,6.2371]
[1752806101393,6.62799395,179.79,179.76,6.2371]
[1752806101587,0.7,179.78,179.76,28.88]
[1752806102100,7.32799395,179.8,179.76,28.88]
[1752806102405,6.62799395,179.79,179.76,28.88]
[1752806102608,0.7,179.78,179.76,28.88]
[1752806103115,6.26236205,179.78,179.76,28.88]
[1752806103412,0.7,179.77,179.76,28.88]
[1752806103594,0.7,179.77,179.75,28.88]
[1752806104499,5.56236205,179.78,179.75,28.88]
[1752806104708,6.26173526,179.8,179.75,38.81492072]
[1752806105129,6.26173526,179.8,179.75,36.02799395]
[1752806105624,26.0,179.82,179.75,35.50799395]
[1752806105804,31.56167672,179.81,179.76,23.93267792]
[1752806106115,38.18967067,179.81,179.77,28.88]
[1752806106290,0.7,179.8,179.77,28.88]
[1752806107504,6.26200456,179.8,179.77,28.88]
[1752806107914,5.56200456,179.8,179.77,28.88]
[1752806108232,6.26200456,179.8,179.77,28.88]
[1752806108394,7.32799395,179.79,179.77,28.88]
[1752806108599,7.32799395,179.78,179.74,28.88]
[1752806108822,0.7,179.77,179.74,28.88]
[1752806109024,20.16634271,179.8,179.74,29.4]
[1752806109325,20.16634271,179.8,179.76,6.62799395]
[1752806109326,5.56200456,179.8,179.76,6.62799395]
[1752806109527,5.56200456,179.8,179.76,29.4]
[1752806109697,5.56200456,179.8,179.77,0.03]
[1752806110229,31.56144782,179.81,179.77,7.17799395]
[1752806110700,31.56144782,179.81,179.78,28.88]
[1752806111100,31.56110707,179.83,179.79,6.62799395]
[1752806111424,31.56110707,179.83,179.79,95.70799395]
[1752806111723,31.56110707,179.83,179.79,124.58799395]
[1752806112025,0.06,179.85,179.8,23.42828397]
[1752806112190,0.06,179.85,179.83,6.62799395]
[1752806112394,0.06,179.85,179.83,124.06799395]
[1752806113011,0.06,179.85,179.83,117.44]
[1752806113199,0.06,179.85,179.83,124.06799395]
[1752806113914,0.76,179.85,179.83,117.44]
[1752806114301,0.06,179.85,179.83,117.44]
[1752806114502,0.06,179.85,179.83,124.58799395]
[1752806114705,0.06,179.85,179.84,6.62799395]
[1752806114914,0.06,179.85,179.84,7.14799395]
[1752806115419,0.06,179.85,179.84,6.62799395]
[1752806115600,0.06,179.85,179.84,7.14799395]
[1752806115800,0.06,179.85,179.84,112.49267792]
[1752806116513,0.06,179.85,179.84,118.05317614]
[1752806117121,0.06,179.85,179.84,29.49317614]
[1752806117834,0.06,179.85,179.84,22.86518219]
[1752806118003,0.06,179.85,179.84,29.49317614]
[1752806118199,0.06,179.85,179.84,22.86518219]
[1752806118423,5.43839101,179.91,179.85,16.78468397]
[1752806118612,5.43839101,179.91,179.86,28.86]
[1752806118918,5.43839101,179.91,179.86,36.20799395]
[1752806119316,5.43839101,179.91,179.87,0.72]
[1752806119498,5.43839101,179.91,179.88,28.86]
[1752806120121,12.06638496,179.91,179.88,28.86]
[1752806120326,12.06638496,179.91,179.87,28.86]
[1752806120327,0.7,179.9,179.87,28.86]
[1752806120525,0.06,179.89,179.86,28.86]
[1752806120827,0.7,179.88,179.86,28.86]
[1752806121129,0.06,179.89,179.86,28.86]
[1752806121305,0.06,179.89,179.86,36.20799395]
[1752806121508,0.06,179.89,179.86,29.58]
[1752806121705,0.76,179.89,179.86,35.48799395]
[1752806121906,0.76,179.89,179.86,28.86]
[1752806122131,0.06,179.89,179.86,28.86]
[1752806122322,0.7,179.88,179.86,28.86]
[1752806122504,0.7,179.88,179.86,124.04799395]
[1752806122825,0.7,179.88,179.86,88.56]
[1752806123001,0.06,179.89,179.86,88.56]
[1752806123203,6.31917276,179.89,179.86,88.3995347]
[1752806123631,0.7,179.88,179.86,88.3995347]
[1752806124030,0.7,179.88,179.86,95.02752865]
[1752806124246,5.61917276,179.89,179.86,88.3995347]
[1752806124429,5.61917276,179.89,179.86,95.02752865]
[1752806124634,5.61917276,179.89,179.87,0.72]
[1752806124832,0.06,179.89,179.87,7.34799395]
[1752806125024,0.06,179.89,179.88,29.54]
[1752806125848,0.06,179.89,179.88,28.86]
[1752806126347,0.06,179.89,179.87,28.86]
[1752806126927,0.06,179.89,179.87,117.2595347]
[1752806128650,0.06,179.89,179.87,124.56752865]
[1752806128833,0.06,179.89,179.87,123.88752865]
[1752806129035,0.06,179.89,179.87,117.2595347]
[1752806129950,0.67,179.88,179.87,88.3995347]
[1752806130251,0.06,179.89,179.87,88.3995347]
[1752806130630,0.06,179.89,179.85,29.54]
[1752806130631,7.29799395,179.88,179.83,88.3995347]
[1752806130825,0.67,179.87,179.83,88.3995347]
[1752806131056,26.0,179.86,179.83,7.30799395]
[1752806131429,5.56018904,179.85,179.83,0.68]
[1752806131627,5.56018904,179.85,179.82,35.48799395]
[1752806131826,5.56018904,179.85,179.82,28.86]
[1752806132055,5.56018904,179.85,179.83,0.68]
[1752806132769,5.56018904,179.85,179.82,28.86]
[1752806133455,5.56018904,179.85,179.81,16.81468397]
[1752806133456,0.67,179.84,179.81,16.81468397]
[1752806133633,0.67,179.84,179.81,28.89]
[1752806134030,0.67,179.84,179.81,0.03]
[1752806134855,5.56080742,179.83,179.81,0.71]
[1752806135852,5.56080742,179.83,179.81,0.03]
[1752806136760,0.67,179.82,179.81,0.03]
[1752806137056,0.67,179.83,179.81,0.03]
[1752806137657,5.56049822,179.84,179.81,0.71]
[1752806138441,33.29799395,179.85,179.81,0.71]
[1752806138442,26.0,179.83,179.82,0.68]
[1752806138649,26.0,179.83,179.82,6.62799395]
[1752806139049,26.0,179.84,179.81,28.89]
[1752806139259,26.0,179.84,179.82,0.68]
[1752806140283,31.56049857,179.84,179.82,0.68]
[1752806140945,26.0,179.84,179.82,0.68]
[1752806141354,26.0,179.84,179.82,7.30799395]
[1752806141964,26.0,179.83,179.82,7.30799395]
[1752806142701,26.0,179.83,179.81,117.2895347]
[1752806142873,5.56027109,179.85,179.81,117.2895347]
[1752806142874,0.67,179.85,179.81,117.2895347]
[1752806143080,26.67,179.85,179.81,124.59752865]
[1752806143294,26.0,179.83,179.82,0.68]
[1752806143597,0.06,179.87,179.83,16.78468397]
[1752806143783,0.06,179.87,179.85,6.62799395]
[1752806143979,0.06,179.87,179.86,6.62799395]
[1752806144168,0.06,179.87,179.86,52.95267792]
[1752806144908,0.06,179.87,179.86,153.44619252]
[1752806145199,0.06,179.87,179.86,157.95592222]
[1752806145575,0.06,179.89,179.87,18.29018397]
[1752806145776,0.06,179.89,179.88,35.48799395]
[1752806145984,0.06,179.89,179.88,52.95267792]
[1752806146275,0.06,179.89,179.88,141.90813879]
[1752806146482,0.06,179.89,179.88,141.35221262]
[1752806147082,0.06,179.89,179.88,146.91147435]
[1752806147588,0.06,179.89,179.88,112.49221262]
[1752806147773,0.06,179.89,179.88,146.91147435]
[1752806148208,0.06,179.89,179.88,141.35221262]
[1752806148576,0.06,179.89,179.88,146.91147435]
[1752806149109,0.06,179.89,179.88,141.35221262]
[1752806149280,0.06,179.89,179.88,146.91147435]
[1752806150878,0.06,179.92,179.91,88.3395347]
[1752806151081,0.06,179.92,179.91,133.96421867]
[1752806151284,0.06,179.92,179.91,141.27221262]
[1752806151490,0.06,179.92,179.91,146.83054734]
[1752806151696,0.06,179.92,179.91,153.07404734]
[1752806152902,0.06,179.93,179.92,16.78468397]
[1752806153200,0.06,179.93,179.92,30.20650627]
[1752806153501,0.06,179.93,179.92,31.77530627]
[1752806158094,0.06,179.97,179.96,16.78468397]
[1752806158292,0.06,179.97,179.96,140.33221262]
[1752806158603,0.06,179.97,179.96,140.99221262]
[1752806159492,0.06,179.97,179.96,111.49221262]
[1752806159690,0.06,179.97,179.96,133.70421867]
[1752806159916,0.75,179.97,179.96,140.33221262]
[1752806160107,0.06,179.97,179.96,140.33221262]
[1752806161619,0.06,179.97,179.96,140.99221262]
[1752806161822,0.06,179.97,179.96,124.20752865]
[1752806162000,0.06,179.97,179.96,140.99221262]
[1752806162323,0.06,179.97,179.96,146.54900301]
[1752806163608,0.06,179.97,179.96,140.99221262]
[1752806163919,0.06,179.97,179.96,133.70421867]
[1752806164518,0.06,179.97,179.96,140.33221262]
[1752806165211,0.06,179.97,179.96,104.86421867]
[1752806165400,0.06,179.97,179.96,140.33221262]
[1752806165597,0.75,179.97,179.96,88.0795347]
[1752806165797,7.37799395,179.97,179.94,88.0795347]
[1752806165999,32.62799395,179.95,179.94,88.0795347]
[1752806166202,26.69,179.95,179.94,88.0795347]
[1752806166531,0.06,179.97,179.94,35.48799395]
[1752806166532,0.75,179.97,179.94,35.48799395]
[1752806167232,0.06,179.97,179.96,6.62799395]
[1752806167407,0.06,179.97,179.94,29.52]
[1752806167616,0.75,179.97,179.95,16.78468397]
[1752806168221,0.06,179.97,179.95,16.78468397]
[1752806168412,0.69,179.96,179.95,23.41267792]
[1752806168613,0.69,179.96,179.95,16.78468397]
[1752806168911,0.69,179.96,179.95,23.41267792]
[1752806169314,0.06,179.97,179.95,23.41267792]
[1752806169524,0.06,179.97,179.96,6.62799395]
[1752806169717,0.06,179.97,179.95,16.78468397]
[1752806169921,0.75,179.97,179.95,111.49221262]
[1752806170119,0.69,179.96,179.95,111.49221262]
[1752806170422,0.06,179.97,179.95,111.49221262]
[1752806170822,0.75,179.97,179.95,111.49221262]
[1752806171321,0.75,179.97,179.96,6.62799395]
[1752806171526,0.75,179.97,179.95,111.49221262]
[1752806171700,0.06,179.97,179.95,111.49221262]
[1752806171901,0.06,179.97,179.96,52.29267792]
[1752806172427,0.06,179.97,179.96,141.03221262]
[1752806174124,0.06,179.97,179.96,146.58900301]
[1752806176930,0.06,179.97,179.96,134.40421867]
[1752806177147,0.06,179.97,179.96,141.03221262]
[1752806177819,0.06,179.97,179.96,146.58900301]
[1752806180939,0.06,179.97,179.96,141.03221262]
[1752806181122,0.06,179.97,179.96,140.37221262]
[1752806181817,0.06,179.97,179.96,146.58900301]
[1752806183144,0.06,179.98,179.96,146.58900301]
[1752806183145,0.06,179.98,179.97,88.0195347]
[1752806183338,0.06,179.98,179.97,95.30752865]
[1752806185038,0.06,179.98,179.97,88.6795347]
[1752806185340,0.06,179.98,179.97,100.86401028]
[1752806187149,0.06,179.98,179.97,94.23601633]
[1752806187346,0.06,179.98,179.97,100.86401028]
[1752806187825,0.06,179.98,179.97,93.57601633]
[1752806188025,0.06,179.98,179.97,100.20401028]
[1752806188426,0.06,179.98,179.97,100.90401028]
[1752806189025,0.06,179.98,179.97,129.88401028]
[1752806194354,0.06,179.98,179.97,129.18401028]
[1752806194558,0.06,179.98,179.97,129.88401028]
[1752806194856,0.06,179.98,179.97,140.0407003]
[1752806195156,0.06,179.98,179.97,146.66869425]
[1752806196262,0.06,179.98,179.97,140.0407003]
[1752806196469,0.06,179.98,179.97,146.66869425]
[1752806197861,0.06,179.98,179.97,145.96869425]
[1752806201652,0.06,179.98,179.97,146.66869425]
[1752806205376,0.06,180.0,179.99,104.74421867]
[1752806205546,0.06,180.0,179.99,140.35221262]
[1752806205997,0.06,180.0,179.99,116.92807683]
[1752806206289,0.06,180.0,179.99,145.88807683]
[1752806206454,0.06,180.0,179.99,139.26008288]
[1752806206654,0.06,180.0,179.99,145.88807683]
[1752806206874,0.06,180.0,179.99,146.58807683]
[1752806207176,0.06,180.0,179.99,153.21607078]
[1752806208377,0.06,180.0,179.99,145.90807683]
[1752806210072,0.06,180.0,179.99,139.28008288]
[1752806210582,0.06,180.0,179.99,145.90807683]
[1752806213800,0.06,180.0,179.99,139.28008288]
[1752806214098,0.06,180.0,179.99,145.90807683]
[1752806215897,0.06,180.0,179.99,146.58807683]
[1752806216274,0.06,180.0,179.99,145.90807683]
[1752806217804,0.06,180.0,179.99,87.9595347]
[1752806217994,26.0,179.98,179.94,0.03]
[1752806218299,7.31799395,179.97,179.94,0.03]
[1752806218612,0.69,179.97,179.94,0.03]
[1752806218779,0.69,179.96,179.94,0.03]
[1752806218978,0.69,179.96,179.94,6.65799395]
[1752806219305,0.69,179.96,179.95,35.56799395]
[1752806219705,0.69,179.96,179.95,28.94]
[1752806220003,0.69,179.96,179.95,35.56799395]
[1752806220200,0.69,179.99,179.96,16.78468397]
[1752806220506,0.69,179.99,179.98,6.65799395]
[1752806220683,0.69,179.99,179.98,16.81468397]
[1752806220884,0.06,180.0,179.98,23.44267792]
[1752806221214,0.75,180.0,179.99,28.96]
[1752806221703,0.75,180.0,179.99,35.58799395]
[1752806223300,0.75,180.0,179.99,28.96]
[1752806223514,0.75,180.0,179.99,35.58799395]
[1752806223713,0.06,180.0,179.99,35.58799395]
[1752806224209,0.06,180.0,179.99,123.54752865]
[1752806224600,0.06,180.0,179.99,145.88807683]
[1752806224804,0.06,180.0,179.99,146.56807683]
[1752806225127,0.06,180.0,179.99,153.19607078]
[1752806225421,0.06,180.0,179.99,146.56807683]
[1752806225792,0.06,180.0,179.99,145.88807683]
[1752806226610,0.06,180.0,179.99,139.26008288]
[1752806226809,0.75,180.0,179.99,94.58752865]
[1752806227015,0.75,180.0,179.99,123.54752865]
[1752806227315,0.75,180.0,179.99,94.58752865]
[1752806227493,0.75,180.0,179.99,123.54752865]
[1752806228008,0.75,180.0,179.99,116.9195347]
[1752806228208,0.75,180.0,179.98,87.9895347]
[1752806228410,0.75,180.0,179.99,28.96]
[1752806228628,0.75,180.0,179.98,116.9495347]
[1752806229122,0.06,180.0,179.99,6.62799395]
[1752806229923,0.75,180.0,179.99,6.62799395]
[1752806230214,0.75,180.0,179.98,116.9495347]
[1752806230413,0.69,179.99,179.98,116.9495347]
[1752806230620,0.69,179.99,179.98,123.57752865]
[1752806231592,0.06,180.0,179.98,123.57752865]
[1752806231817,0.06,180.0,179.99,6.62799395]
[1752806232017,0.06,180.0,179.99,94.58752865]
[1752806232422,0.75,180.0,179.99,94.58752865]
[1752806232809,0.75,180.0,179.99,87.9595347]
[1752806232999,0.75,180.0,179.99,94.58752865]
[1752806233309,0.75,180.0,179.99,87.9595347]
[1752806233503,0.75,180.0,179.99,94.58752865]
[1752806233898,0.75,180.0,179.99,87.9595347]
[1752806234097,0.75,180.0,179.99,94.58752865]
[1752806235323,0.75,180.0,179.99,87.9595347]
[1752806235505,0.75,180.0,179.99,116.8795347]
[1752806236044,6.30555555,180.0,179.99,116.8795347]
[1752806236322,12.9335495,180.0,179.99,87.9595347]
[1752806236699,6.30555555,180.0,179.99,87.9595347]
[1752806237528,12.9335495,180.0,179.98,0.03]
[1752806237711,7.31799395,179.99,179.98,0.03]
[1752806238101,0.69,179.99,179.98,0.03]
[1752806238302,7.31799395,179.99,179.98,0.03]
[1752806238730,0.69,179.99,179.98,0.03]
[1752806239413,6.24586421,179.99,179.98,0.03]
[1752806239611,12.87385816,179.99,179.98,0.03]
[1752806240036,6.24586421,179.99,179.98,0.03]
[1752806240224,12.87385816,179.99,179.98,0.03]
[1752806242643,26.0,179.96,179.94,0.03]
[1752806242845,6.62799395,179.95,179.94,0.03]
[1752806243018,7.31799395,179.95,179.94,0.03]
[1752806244823,12.87509314,179.95,179.94,0.03]
[1752806245226,12.87509314,179.95,179.93,0.03]
[1752806245420,7.32799395,179.94,179.93,1e-08]
[1752806246319,0.7,179.94,179.93,1e-08]
[1752806246515,7.32799395,179.94,179.93,1e-08]
[1752806246927,12.88540197,179.94,179.93,1e-08]
[1752806251932,6.25740802,179.94,179.93,1e-08]
[1752806252845,32.25740802,179.94,179.93,1e-08]
[1752806253231,38.88540197,179.94,179.93,1e-08]
[1752806254044,32.25740802,179.94,179.93,1e-08]
[1752806256253,0.7,179.99,179.93,96.08799396]
[1752806256430,26.77351869,179.99,179.94,35.52799395]
[1752806256626,0.7,179.98,179.94,29.56]
[1752806256935,26.0,179.96,179.94,28.9]
[1752806257139,26.7,179.96,179.94,35.52799395]
[1752806257447,26.7,179.96,179.95,6.62799395]
[1752806257746,26.7,179.96,179.93,1e-08]
[1752806257747,26.0,179.94,179.93,1e-08]
[1752806258140,26.7,179.94,179.93,1e-08]
[1752806259120,32.25740802,179.94,179.93,1e-08]
[1752806259345,0.7,179.98,179.93,0.66000001]
[1752806259520,0.7,179.98,179.94,6.62799395]
[1752806259724,0.7,179.98,179.93,0.66000001]
[1752806259725,26.0,179.96,179.93,6.62799396]
[1752806260159,0.7,179.95,179.93,6.62799396]
[1752806260627,0.7,179.95,179.93,1e-08]
[1752806260826,0.7,179.94,179.93,1e-08]
[1752806261136,26.7,179.94,179.93,1e-08]
[1752806261329,5.55711885,179.95,179.93,7.28799396]
[1752806261743,6.25711885,179.95,179.93,1e-08]
[1752806262049,6.25711885,179.95,179.93,6.62799396]
[1752806262246,5.55711885,179.95,179.93,6.62799396]
[1752806262633,0.7,179.97,179.94,6.62799395]
[1752806262835,26.0,179.96,179.94,6.62799395]
[1752806263323,26.0,179.97,179.95,7.28799395]
[1752806263934,5.55618276,179.98,179.95,7.28799395]
[1752806265030,6.25618276,179.98,179.95,7.28799395]
[1752806265851,5.55618276,179.98,179.96,6.62799395]
[1752806266168,26.0,179.98,179.96,6.62799395]
[1752806266843,0.7,179.98,179.95,88.8]
[1752806267044,0.7,179.98,179.96,6.62799395]
[1752806267348,0.06,180.0,179.97,6.62799395]
[1752806267661,0.06,180.0,179.98,35.60799395]
[1752806267845,0.06,180.0,179.98,28.98]
[1752806268053,6.31561361,180.0,179.98,35.60799395]
[1752806268249,0.06,180.0,179.99,6.62799395]
[1752806268454,0.06,180.0,179.99,7.28799395]
[1752806269460,0.06,180.0,179.97,7.28799395]
[1752806269637,0.06,180.0,179.98,7.28799395]
[1752806270450,0.06,180.0,179.99,6.62799395]
[1752806270665,0.06,180.0,179.99,7.28799395]
[1752806272463,0.06,180.0,179.99,0.66]
[1752806272661,0.06,180.0,179.98,29.0]
[1752806272960,0.06,180.0,179.99,6.62799395]
[1752806273143,0.06,180.0,179.99,7.28799395]
[1752806273355,0.06,180.0,179.99,13.39409395]
[1752806274052,0.06,180.0,179.99,30.17877792]
[1752806274751,0.06,180.0,179.99,35.73464213]
[1752806275351,0.06,180.0,179.99,124.53464213]
[1752806277970,0.06,180.0,179.99,95.5661]
[1752806278264,0.06,180.0,179.99,153.51464213]
[1752806280071,0.06,180.0,179.99,147.95877792]
[1752806280242,0.06,180.0,179.99,130.51409395]
[1752806280763,0.06,180.0,179.99,124.6061]
[1752806281175,0.06,180.0,179.99,131.23409395]
[1752806281356,0.06,180.0,179.99,124.6061]
[1752806281958,0.06,180.0,179.99,131.23409395]
[1752806282367,0.06,180.0,179.99,130.51409395]
[1752806282855,0.06,180.0,179.99,131.23409395]
[1752806283244,0.06,180.01,180.0,16.78468397]
[1752806283448,0.06,180.01,180.0,119.56067187]
[1752806284252,0.06,180.01,180.0,145.56067187]
[1752806284972,0.06,180.01,180.0,151.11622742]
[1752806285675,0.06,180.01,180.0,155.66354474]
[1752806286780,0.06,180.01,180.0,151.11622742]
[1752806287152,0.06,180.01,180.0,137.86023952]
[1752806287379,0.06,180.01,180.0,155.62430529]
[1752806288155,0.06,180.04,180.03,105.36468397]
[1752806288356,0.06,180.04,180.03,140.97267792]
[1752806288571,0.06,180.04,180.03,141.69267792]
[1752806288772,0.78,180.04,180.03,88.58]
[1752806289076,0.78,180.04,180.03,117.58]
[1752806290557,0.78,180.04,180.03,124.20799395]
[1752806291375,0.78,180.04,180.03,117.58]
[1752806291567,0.78,180.04,180.03,124.20799395]
[1752806292778,0.78,180.04,180.03,117.58]
[1752806292955,0.78,180.04,180.03,124.20799395]
[1752806293155,0.78,180.04,180.03,117.58]
[1752806293559,6.33432126,180.04,180.02,28.98]
[1752806293758,6.33432126,180.04,180.0,95.20799395]
[1752806294056,0.72,180.03,180.01,35.60799395]
[1752806294666,0.72,180.02,180.01,28.98]
[1752806294979,0.72,180.02,180.01,35.60799395]
[1752806295167,0.72,180.02,180.01,28.98]
[1752806295353,0.72,180.02,180.01,35.60799395]
[1752806295552,0.72,180.02,179.93,7.85070001]
[1752806295754,0.72,180.02,179.95,6.62799395]
[1752806295951,6.62799395,180.01,179.96,28.96]
[1752806296168,0.72,180.0,179.96,28.96]
[1752806296364,0.72,180.0,179.96,35.58799395]
[1752806296566,6.27586421,179.99,179.96,28.96]
[1752806296773,0.72,179.98,179.96,28.96]
[1752806297577,0.72,179.98,179.96,35.58799395]
[1752806298086,0.72,179.97,179.93,1e-08]
[1752806298264,26.0,179.95,179.93,1e-08]
[1752806298601,32.62799395,179.95,179.93,1e-08]
[1752806298776,20.23180676,179.98,179.93,1e-08]
[1752806298777,26.72,179.94,179.93,1e-08]
[1752806300119,6.27740802,179.94,179.93,1e-08]
[1752806302195,29.69008594,179.94,179.93,1e-08]
[1752806302408,26.0,179.88,179.85,0.03]
[1752806302791,0.72,179.87,179.85,0.03]
[1752806303290,7.34799395,179.87,179.85,0.03]
[1752806303613,26.0,179.91,179.86,6.62799395]
[1752806303804,0.72,179.89,179.85,117.55]
[1752806304212,5.55926173,179.88,179.85,117.55]
[1752806304525,0.72,179.87,179.85,117.55]
[1752806304697,0.66,179.86,179.85,117.55]
[1752806305207,6.21926173,179.88,179.85,117.55]
[1752806305405,0.66,179.87,179.85,117.55]
[1752806306425,7.28799395,179.86,179.85,88.61]
[1752806306718,0.66,179.86,179.85,88.61]
[1752806306894,0.66,179.86,179.85,0.03]
[1752806307096,7.28799395,179.86,179.85,0.03]
[1752806307594,0.66,179.86,179.85,0.03]
[1752806308001,7.28799395,179.86,179.85,0.03]
[1752806308204,12.84787385,179.86,179.85,0.03]
[1752806309213,38.84787385,179.86,179.85,0.03]
[1752806310422,32.2198799,179.86,179.85,0.03]
[1752806310922,38.84787385,179.86,179.85,0.03]
[1752806312597,26.66,179.86,179.85,0.03]
[1752806312817,26.0,179.87,179.85,0.03]
[1752806313119,0.66,179.88,179.85,6.65799395]
[1752806313421,0.66,179.88,179.85,35.55799395]
[1752806313422,26.0,179.87,179.85,35.55799395]
[1752806314413,0.66,179.88,179.85,28.93]
[1752806314621,26.0,179.89,179.85,35.55799395]
[1752806314806,26.0,179.89,179.85,36.22799395]
[1752806315021,26.66,179.89,179.85,36.22799395]
[1752806315227,26.66,179.89,179.86,6.62799395]
[1752806315430,0.66,179.88,179.85,28.93]
[1752806315630,26.0,179.89,179.85,35.55799395]
[1752806315827,26.66,179.89,179.85,36.22799395]
[1752806316422,12.18661032,179.91,179.85,36.22799395]
[1752806316423,6.21861637,179.91,179.87,6.62799395]
[1752806316632,26.0,179.92,179.88,35.52799395]
[1752806316831,0.66,179.91,179.88,28.9]
[1752806317037,6.62799395,179.92,179.88,28.9]
[1752806317219,0.66,179.91,179.88,28.9]
[1752806317727,0.66,179.9,179.88,28.9]
[1752806318127,6.2181103,179.92,179.88,35.52799395]
[1752806318337,6.21766413,179.94,179.89,6.62799395]
[1752806318544,6.21766413,179.94,179.9,6.62799395]
[1752806318843,6.21766413,179.94,179.89,6.62799395]
[1752806318844,0.66,179.93,179.89,6.62799395]
[1752806319524,0.66,179.92,179.88,35.52799395]
[1752806320422,0.66,179.92,179.88,41.75722649]
[1752806320624,0.06,179.93,179.89,0.67]
[1752806320843,0.06,179.93,179.89,7.29799395]
[1752806321047,0.72,179.93,179.89,7.29799395]
[1752806321343,0.06,179.93,179.9,7.29799395]
[1752806321543,0.66,179.92,179.91,28.9]
[1752806321747,6.21807252,179.92,179.89,117.48]
[1752806322135,0.66,179.91,179.89,117.48]
[1752806326052,5.55807252,179.92,179.89,117.48]
[1752806326232,6.21807252,179.92,179.89,117.48]
[1752806327049,5.61773309,179.93,179.89,124.77799395]
[1752806327249,6.27773309,179.93,179.89,118.15]
[1752806327558,0.66,179.92,179.89,117.48]
[1752806327740,7.28799395,179.92,179.89,117.48]
[1752806328147,6.21833472,179.91,179.89,117.48]
[1752806329253,6.21864369,179.9,179.89,117.48]
[1752806329426,6.21864369,179.9,179.89,88.58]
[1752806330044,0.06,179.93,179.89,88.61]
[1752806330240,0.06,179.93,179.89,94.83890596]
[1752806330241,0.06,179.92,179.89,94.83890596]
[1752806330553,0.06,179.92,179.9,29.55]
[1752806331178,0.06,179.92,179.91,7.29799395]
[1752806331364,0.06,179.92,179.91,12.85632867]
[1752806332270,0.06,179.92,179.91,14.38712867]
[1752806332578,0.06,179.92,179.91,31.17181264]
[1752806338380,0.06,179.93,179.92,94.07802578]
[1752806338698,0.06,179.93,179.92,130.27601973]
[1752806339987,0.06,179.93,179.92,123.64802578]
[1752806340167,0.06,179.93,179.92,130.27601973]
[1752806341565,0.77,179.93,179.92,88.52]
[1752806345394,0.06,179.93,179.92,36.19799395]
[1752806346990,0.06,179.93,179.92,41.06601973]
[1752806347174,0.06,179.93,179.92,34.43802578]
[1752806347370,0.06,179.93,179.92,41.06601973]